[Event "*** Titled Tuesday Blitz"]
[Site "Chess.com"]
[Date "2020.10.27"]
[Round "7"]
[White "Vamostodorecto"]
[Black "oogee"]
[Result "0-1"]
[WhiteElo "2331"]
[BlackElo "2192"]
[TimeControl "180+1"]
[EndTime "11:18:45 PDT"]
[Termination "oogee won by checkmate"]

1. d4 {[%clk 0:03:00.9]} 1... Nf6 {[%clk 0:02:58.3]} 2. c4 {[%clk 0:03:00.1]}
2... g6 {[%clk 0:02:58.6]} 3. Nc3 {[%clk 0:02:59]} 3... Bg7 {[%clk 0:02:58.9]}
4. e4 {[%clk 0:02:58]} 4... d6 {[%clk 0:02:59.1]} 5. Be2 {[%clk 0:02:58.4]} 5...
O-O {[%clk 0:02:59.3]} 6. Nf3 {[%clk 0:02:59.3]} 6... e5 {[%clk 0:02:59.2]} 7.
O-O {[%clk 0:02:59.4]} 7... Nc6 {[%clk 0:02:59.5]} 8. d5 {[%clk 0:03:00]} 8...
Ne7 {[%clk 0:02:59.9]} 9. Ne1 {[%clk 0:03:00.3]} 9... Nd7 {[%clk 0:03:00]} 10.
Be3 {[%clk 0:03:01]} 10... f5 {[%clk 0:03:00]} 11. f3 {[%clk 0:03:01.7]} 11...
f4 {[%clk 0:03:00.2]} 12. Bf2 {[%clk 0:03:02.4]} 12... g5 {[%clk 0:03:00.6]} 13.
Rc1 {[%clk 0:03:02.9]} 13... Rf6 {[%clk 0:03:00.5]} 14. c5 {[%clk 0:03:01.7]}
14... Nxc5 {[%clk 0:02:55.1]} 15. b4 {[%clk 0:02:59.9]} 15... Na6 {[%clk
0:02:54.3]} 16. Nb5 {[%clk 0:02:57.5]} 16... Bd7 {[%clk 0:02:31.8]} 17. a4
{[%clk 0:02:54]} 17... Rh6 {[%clk 0:02:25.7]} 18. Rc4 {[%clk 0:02:50.5]} 18...
b6 {[%clk 0:02:19]} 19. Qc2 {[%clk 0:02:49]} 19... Qe8 {[%clk 0:02:01.3]} 20.
Nxc7 {[%clk 0:02:21.7]} 20... Nxc7 {[%clk 0:02:00.5]} 21. Rxc7 {[%clk
0:02:22.6]} 21... Qh5 {[%clk 0:01:58.7]} 22. h4 {[%clk 0:02:11.6]} 22... Rd8
{[%clk 0:01:35.5]} 23. Bb5 {[%clk 0:01:49.5]} 23... Bxb5 {[%clk 0:01:27.4]} 24.
axb5 {[%clk 0:01:50.4]} 24... Bf6 {[%clk 0:01:21.4]} 25. Rxa7 {[%clk 0:01:35.1]}
25... g4 {[%clk 0:01:21.1]} 26. fxg4 {[%clk 0:01:31.7]} 26... Qxg4 {[%clk
0:01:20.2]} 27. Nf3 {[%clk 0:01:29.9]} 27... Kh8 {[%clk 0:00:54.2]} 28. Rfa1
{[%clk 0:01:03.5]} 28... Rg8 {[%clk 0:00:50.7]} 29. Ne1 {[%clk 0:00:50.1]} 29...
Bxh4 {[%clk 0:00:48.7]} 30. Bxh4 {[%clk 0:00:23.8]} 30... Qxh4 {[%clk
0:00:42.6]} 31. Qc7 {[%clk 0:00:23.6]} 31... f3 {[%clk 0:00:24.1]} 32. Nxf3
{[%clk 0:00:17.3]} 32... Qg3 {[%clk 0:00:21.9]} 33. Ne1 {[%clk 0:00:08.6]} 33...
Qe3+ {[%clk 0:00:19]} 34. Kf1 {[%clk 0:00:06.8]} 34... Rh1# {[%clk 0:00:19.9]}
0-1

[Event "*** Titled Tuesday Blitz"]
[Site "Chess.com"]
[Date "2020.10.27"]
[Round "7"]
[White "Bastiandash"]
[Black "aleksey1203borisovi4"]
[Result "0-1"]
[WhiteElo "2333"]
[BlackElo "2500"]
[TimeControl "180+1"]
[EndTime "11:18:47 PDT"]
[Termination "aleksey1203borisovi4 won by resignation"]

1. d4 {[%clk 0:03:00.9]} 1... g6 {[%clk 0:03:00.9]} 2. Nf3 {[%clk 0:03:00.7]}
2... d6 {[%clk 0:03:00]} 3. Bg5 {[%clk 0:03:01.2]} 3... Bg7 {[%clk 0:02:59.6]}
4. Nbd2 {[%clk 0:03:01.7]} 4... Nc6 {[%clk 0:02:58]} 5. c3 {[%clk 0:03:01.8]}
5... Nf6 {[%clk 0:02:57.3]} 6. e4 {[%clk 0:03:01.7]} 6... O-O {[%clk 0:02:57]}
7. Be2 {[%clk 0:03:00.3]} 7... h6 {[%clk 0:02:56.4]} 8. Bh4 {[%clk 0:03:00.1]}
8... Bg4 {[%clk 0:02:56.5]} 9. O-O {[%clk 0:02:59.4]} 9... Re8 {[%clk 0:02:55]}
10. Qc2 {[%clk 0:02:54.9]} 10... a6 {[%clk 0:02:54.7]} 11. Rfe1 {[%clk 0:02:45]}
11... e5 {[%clk 0:02:54.5]} 12. dxe5 {[%clk 0:02:42.7]} 12... dxe5 {[%clk
0:02:51.2]} 13. Rad1 {[%clk 0:02:40.2]} 13... g5 {[%clk 0:02:46.5]} 14. Bg3
{[%clk 0:02:39.5]} 14... Qe7 {[%clk 0:02:39.7]} 15. Nc4 {[%clk 0:02:34.6]} 15...
Nh5 {[%clk 0:02:38.6]} 16. Ne3 {[%clk 0:02:32.3]} 16... Bxf3 {[%clk 0:02:31]}
17. Bxf3 {[%clk 0:02:29.5]} 17... Nf4 {[%clk 0:02:31.3]} 18. Nf5 {[%clk
0:01:53.6]} 18... Qe6 {[%clk 0:02:19.4]} 19. h4 {[%clk 0:01:46.7]} 19... Ne7
{[%clk 0:02:15.8]} 20. Bg4 {[%clk 0:01:34.7]} 20... Nxf5 {[%clk 0:02:14.2]} 21.
Bxf5 {[%clk 0:01:35.6]} 21... Qf6 {[%clk 0:02:05.4]} 22. Bxf4 {[%clk 0:01:32.4]}
22... gxf4 {[%clk 0:02:03.6]} 23. h5 {[%clk 0:01:15.4]} 23... Rad8 {[%clk
0:02:01.8]} 24. Qe2 {[%clk 0:01:14.7]} 24... Kh8 {[%clk 0:01:56.8]} 25. Bg4
{[%clk 0:01:13]} 25... Rg8 {[%clk 0:01:53.8]} 26. f3 {[%clk 0:01:02.2]} 26...
Qe7 {[%clk 0:01:50.8]} 27. Rxd8 {[%clk 0:00:50.5]} 27... Rxd8 {[%clk 0:01:49.8]}
28. Rd1 {[%clk 0:00:51.4]} 28... Bf6 {[%clk 0:01:45]} 29. b4 {[%clk 0:00:20]}
29... Bh4 {[%clk 0:01:42.3]} 30. Rd5 {[%clk 0:00:14.3]} 30... c6 {[%clk
0:01:36.7]} 31. Rd3 {[%clk 0:00:13.2]} 31... Bg3 {[%clk 0:01:34.9]} 32. Qd1
{[%clk 0:00:10.1]} 32... Rxd3 {[%clk 0:01:31.6]} 33. Qxd3 {[%clk 0:00:11]} 33...
Qh4 {[%clk 0:01:30.9]} 34. Bh3 {[%clk 0:00:11.5]} 34... Bf2+ {[%clk 0:01:27.7]}
35. Kh1 {[%clk 0:00:01.5]} 35... Bb6 {[%clk 0:01:28.6]} 36. Qd2 {[%clk
0:00:01.5]} 36... Kg7 {[%clk 0:01:24.6]} 37. a4 {[%clk 0:00:02]} 37... Be3
{[%clk 0:01:21]} 38. Qe2 {[%clk 0:00:02]} 38... Qd8 {[%clk 0:01:17.6]} 39. Kh2
{[%clk 0:00:02.5]} 39... b5 {[%clk 0:01:14.4]} 40. axb5 {[%clk 0:00:02.5]} 40...
axb5 {[%clk 0:01:15.3]} 41. c4 {[%clk 0:00:03.4]} 41... bxc4 {[%clk 0:01:08]}
42. g3 {[%clk 0:00:03]} 42... c3 {[%clk 0:01:04.6]} 43. gxf4 {[%clk 0:00:02.6]}
43... Bxf4+ {[%clk 0:01:03.6]} 44. Kg1 {[%clk 0:00:01.5]} 44... Qd2 {[%clk
0:00:59.2]} 0-1

[Event "*** Titled Tuesday Blitz"]
[Site "Chess.com"]
[Date "2020.10.27"]
[Round "7"]
[White "TheChessChannel"]
[Black "Kazmin_Dmitrij"]
[Result "1-0"]
[WhiteElo "2436"]
[BlackElo "2272"]
[TimeControl "180+1"]
[EndTime "11:18:50 PDT"]
[Termination "TheChessChannel won on time"]

1. c4 {[%clk 0:03:00.9]} 1... c5 {[%clk 0:02:58.3]} 2. g3 {[%clk 0:02:57.3]}
2... Nf6 {[%clk 0:02:46.2]} 3. Bg2 {[%clk 0:02:57]} 3... d5 {[%clk 0:02:45.1]}
4. cxd5 {[%clk 0:02:57.9]} 4... Nxd5 {[%clk 0:02:44.6]} 5. Nf3 {[%clk
0:02:58.5]} 5... Nc6 {[%clk 0:02:25.8]} 6. Nc3 {[%clk 0:02:39.6]} 6... Nc7
{[%clk 0:02:24.9]} 7. O-O {[%clk 0:02:37]} 7... e5 {[%clk 0:02:21.1]} 8. d3
{[%clk 0:02:37.2]} 8... Be7 {[%clk 0:02:18.5]} 9. Nd2 {[%clk 0:02:34.8]} 9...
Bd7 {[%clk 0:02:18]} 10. Nc4 {[%clk 0:02:31.2]} 10... f6 {[%clk 0:01:56.8]} 11.
f4 {[%clk 0:02:30.8]} 11... b5 {[%clk 0:01:44.1]} 12. Ne3 {[%clk 0:02:30.6]}
12... exf4 {[%clk 0:01:40.9]} 13. gxf4 {[%clk 0:02:28]} 13... Rb8 {[%clk
0:01:34.9]} 14. Bd2 {[%clk 0:02:28.3]} 14... O-O {[%clk 0:01:25]} 15. Ncd5
{[%clk 0:02:22.8]} 15... Nxd5 {[%clk 0:01:20]} 16. Nxd5 {[%clk 0:02:23]} 16...
Bd6 {[%clk 0:01:19]} 17. Nc3 {[%clk 0:02:14.5]} 17... Ne7 {[%clk 0:01:12.8]} 18.
Ne4 {[%clk 0:02:09.5]} 18... Bc6 {[%clk 0:01:07.8]} 19. Qb3+ {[%clk 0:01:49.5]}
19... Kh8 {[%clk 0:01:03.8]} 20. Rac1 {[%clk 0:01:50]} 20... Bxe4 {[%clk
0:00:49.3]} 21. Bxe4 {[%clk 0:01:40.2]} 21... f5 {[%clk 0:00:36.7]} 22. Bf3
{[%clk 0:01:36.8]} 22... Ng6 {[%clk 0:00:34.8]} 23. e3 {[%clk 0:01:24.1]} 23...
Nh4 {[%clk 0:00:32.4]} 24. Bd5 {[%clk 0:01:21.2]} 24... Rf6 {[%clk 0:00:29.4]}
25. Kh1 {[%clk 0:01:18.3]} 25... Rh6 {[%clk 0:00:26.3]} 26. Rg1 {[%clk
0:01:13.5]} 26... Ng6 {[%clk 0:00:23]} 27. Rg2 {[%clk 0:01:11]} 27... Nh4 {[%clk
0:00:20.8]} 28. Rg3 {[%clk 0:01:08.3]} 28... Ng6 {[%clk 0:00:20.5]} 29. Rcg1
{[%clk 0:01:05.4]} 29... Qh4 {[%clk 0:00:17.8]} 30. R1g2 {[%clk 0:01:00.1]}
30... a6 {[%clk 0:00:12.7]} 31. a3 {[%clk 0:00:57.8]} 31... Rd8 {[%clk
0:00:11.7]} 32. Bf3 {[%clk 0:00:48.3]} 32... Qf6 {[%clk 0:00:09.5]} 33. a4
{[%clk 0:00:41.1]} 33... Nh4 {[%clk 0:00:06.6]} 34. Bc3 {[%clk 0:00:36.3]} 34...
Nxf3 {[%clk 0:00:03.7]} 35. Rxf3 {[%clk 0:00:26.9]} 1-0

[Event "*** Titled Tuesday Blitz"]
[Site "Chess.com"]
[Date "2020.10.27"]
[Round "7"]
[White "Borsuk_Konstantin"]
[Black "MrChampion_Coach"]
[Result "1-0"]
[WhiteElo "2567"]
[BlackElo "2420"]
[TimeControl "180+1"]
[EndTime "11:18:54 PDT"]
[Termination "Borsuk_Konstantin won on time"]

1. d4 {[%clk 0:03:00.9]} 1... Nf6 {[%clk 0:02:59.2]} 2. c4 {[%clk 0:03:01.2]}
2... e6 {[%clk 0:02:58.7]} 3. Nf3 {[%clk 0:03:01.4]} 3... d5 {[%clk 0:02:57.3]}
4. Bg5 {[%clk 0:02:59.3]} 4... a6 {[%clk 0:02:38.8]} 5. e3 {[%clk 0:02:59.2]}
5... Be7 {[%clk 0:02:27.4]} 6. Nc3 {[%clk 0:02:57.5]} 6... O-O {[%clk
0:02:27.1]} 7. Rc1 {[%clk 0:02:57.4]} 7... Nbd7 {[%clk 0:02:20.5]} 8. Be2 {[%clk
0:02:53.2]} 8... dxc4 {[%clk 0:02:20.2]} 9. Bxc4 {[%clk 0:02:52.5]} 9... b5
{[%clk 0:02:20.8]} 10. Bb3 {[%clk 0:02:50.8]} 10... Bb7 {[%clk 0:02:20.7]} 11.
O-O {[%clk 0:02:51.1]} 11... c5 {[%clk 0:02:20.4]} 12. Qe2 {[%clk 0:02:51.3]}
12... Qb6 {[%clk 0:02:16.1]} 13. a3 {[%clk 0:02:47.4]} 13... Rfe8 {[%clk
0:02:13.3]} 14. Ba2 {[%clk 0:02:35.3]} 14... Rac8 {[%clk 0:02:10.3]} 15. h3
{[%clk 0:02:31.6]} 15... Ne4 {[%clk 0:02:07.3]} 16. Bxe7 {[%clk 0:02:30.3]}
16... Rxe7 {[%clk 0:02:07.1]} 17. Nxe4 {[%clk 0:02:20.6]} 17... Bxe4 {[%clk
0:02:08]} 18. Nd2 {[%clk 0:02:20.6]} 18... Ba8 {[%clk 0:02:01.8]} 19. b4 {[%clk
0:02:14.5]} 19... Qb7 {[%clk 0:01:56.5]} 20. Qf3 {[%clk 0:02:09.6]} 20... Qb8
{[%clk 0:01:53.4]} 21. Qe2 {[%clk 0:02:02.1]} 21... cxd4 {[%clk 0:01:49.7]} 22.
exd4 {[%clk 0:02:02.1]} 22... Nb6 {[%clk 0:01:45.4]} 23. Ne4 {[%clk 0:01:55.9]}
23... Bd5 {[%clk 0:01:29.4]} 24. Nc5 {[%clk 0:01:54.5]} 24... Qa8 {[%clk
0:01:17.2]} 25. f4 {[%clk 0:01:53.2]} 25... Bc4 {[%clk 0:01:11.4]} 26. Bxc4
{[%clk 0:01:52.2]} 26... Nxc4 {[%clk 0:01:12.3]} 27. f5 {[%clk 0:01:51.4]} 27...
Qd5 {[%clk 0:01:05.8]} 28. Rcd1 {[%clk 0:01:35.7]} 28... Ree8 {[%clk 0:00:47.6]}
29. f6 {[%clk 0:01:33.5]} 29... g6 {[%clk 0:00:37.6]} 30. a4 {[%clk 0:01:15.9]}
30... bxa4 {[%clk 0:00:33]} 31. Nxa4 {[%clk 0:01:12.2]} 31... Nd6 {[%clk
0:00:31.7]} 32. Nc5 {[%clk 0:01:09.5]} 32... Nf5 {[%clk 0:00:29.7]} 33. Qd2
{[%clk 0:00:48.6]} 33... Red8 {[%clk 0:00:23.8]} 34. Qf4 {[%clk 0:00:40.9]}
34... Nd6 {[%clk 0:00:13.5]} 35. Qh6 {[%clk 0:00:38.3]} 35... Ne8 {[%clk
0:00:13.5]} 36. Kh1 {[%clk 0:00:31.4]} 36... Rb8 {[%clk 0:00:10.6]} 37. Rde1
{[%clk 0:00:30.2]} 37... Rxb4 {[%clk 0:00:08.3]} 38. Nxe6 {[%clk 0:00:30.1]} 1-0

[Event "*** Titled Tuesday Blitz"]
[Site "Chess.com"]
[Date "2020.10.27"]
[Round "7"]
[White "CakeinSpace2002"]
[Black "kinga2008"]
[Result "1-0"]
[WhiteElo "2349"]
[BlackElo "2124"]
[TimeControl "180+1"]
[EndTime "11:18:54 PDT"]
[Termination "CakeinSpace2002 won by resignation"]

1. c4 {[%clk 0:02:59.3]} 1... c5 {[%clk 0:03:00.9]} 2. Nc3 {[%clk 0:02:58.9]}
2... Nf6 {[%clk 0:03:00.2]} 3. g3 {[%clk 0:02:59.8]} 3... g6 {[%clk 0:03:00.2]}
4. Bg2 {[%clk 0:03:00.7]} 4... Bg7 {[%clk 0:03:00.8]} 5. d3 {[%clk 0:03:01.6]}
5... O-O {[%clk 0:03:01.4]} 6. e3 {[%clk 0:03:02.5]} 6... d6 {[%clk 0:03:02]} 7.
Nge2 {[%clk 0:03:03.4]} 7... e6 {[%clk 0:03:02.5]} 8. O-O {[%clk 0:03:04.3]}
8... Nc6 {[%clk 0:03:03.2]} 9. a3 {[%clk 0:03:04.3]} 9... d5 {[%clk 0:03:03.5]}
10. cxd5 {[%clk 0:03:00.3]} 10... exd5 {[%clk 0:03:03]} 11. e4 {[%clk
0:02:59.6]} 11... dxe4 {[%clk 0:03:00.2]} 12. dxe4 {[%clk 0:02:58]} 12... Bg4
{[%clk 0:03:00]} 13. Be3 {[%clk 0:02:55.8]} 13... Nd4 {[%clk 0:02:58.2]} 14. f3
{[%clk 0:02:53.4]} 14... Nxe2+ {[%clk 0:02:54.3]} 15. Qxe2 {[%clk 0:02:53.1]}
15... Be6 {[%clk 0:02:54.8]} 16. Bxc5 {[%clk 0:02:52.6]} 16... Re8 {[%clk
0:02:52.3]} 17. Rfd1 {[%clk 0:02:51.9]} 17... Qc7 {[%clk 0:02:51.3]} 18. Bf2
{[%clk 0:02:50.9]} 18... a6 {[%clk 0:02:48.4]} 19. Rac1 {[%clk 0:02:50.2]} 19...
Rac8 {[%clk 0:02:42.3]} 20. Qe3 {[%clk 0:02:38.7]} 20... Bb3 {[%clk 0:02:37]}
21. Re1 {[%clk 0:02:35.5]} 21... Qe5 {[%clk 0:02:06.3]} 22. Qd4 {[%clk 0:02:31]}
22... Qh5 {[%clk 0:02:04.3]} 23. Qb6 {[%clk 0:02:28.8]} 23... Be6 {[%clk
0:01:58.9]} 24. Qxb7 {[%clk 0:02:26.1]} 24... Bh3 {[%clk 0:01:58.2]} 25. Qxa6
{[%clk 0:02:20.7]} 25... Bxg2 {[%clk 0:01:56.1]} 26. Kxg2 {[%clk 0:02:21.6]}
26... Red8 {[%clk 0:01:51]} 27. Qe2 {[%clk 0:02:20.1]} 27... Nd7 {[%clk
0:01:38.6]} 28. Nd5 {[%clk 0:02:13.8]} 28... Rxc1 {[%clk 0:01:31.5]} 29. Rxc1
{[%clk 0:02:14.6]} 29... Ne5 {[%clk 0:01:30.4]} 30. b4 {[%clk 0:02:06.2]} 30...
f5 {[%clk 0:01:28.1]} 31. Rc2 {[%clk 0:02:00.8]} 31... fxe4 {[%clk 0:01:19]} 32.
fxe4 {[%clk 0:02:01.7]} 32... Qg5 {[%clk 0:01:02.6]} 33. Be3 {[%clk 0:01:55.5]}
33... Qg4 {[%clk 0:00:51]} 34. Qxg4 {[%clk 0:01:53.3]} 34... Nxg4 {[%clk
0:00:49.5]} 35. Bg1 {[%clk 0:01:53.4]} 35... Re8 {[%clk 0:00:48.2]} 36. Rc8
{[%clk 0:01:48.7]} 36... Rxc8 {[%clk 0:00:32.9]} 37. Ne7+ {[%clk 0:01:48.1]}
37... Kf7 {[%clk 0:00:33.8]} 38. Nxc8 {[%clk 0:01:48.7]} 38... Ke6 {[%clk
0:00:34.4]} 39. b5 {[%clk 0:01:48]} 39... Kd7 {[%clk 0:00:30]} 40. Nb6+ {[%clk
0:01:47]} 40... Kd6 {[%clk 0:00:28.8]} 41. Nd5 {[%clk 0:01:46]} 41... Ne5 {[%clk
0:00:20.3]} 42. a4 {[%clk 0:01:42.1]} 42... Nc4 {[%clk 0:00:17.5]} 43. h4 {[%clk
0:01:27.6]} 43... h5 {[%clk 0:00:07]} 44. Nf4 {[%clk 0:01:26]} 44... Nb2 {[%clk
0:00:03.4]} 45. a5 {[%clk 0:01:25.1]} 45... Nc4 {[%clk 0:00:02.3]} 46. a6 {[%clk
0:01:24.7]} 46... Kc7 {[%clk 0:00:02.9]} 47. Nxg6 {[%clk 0:01:23.3]} 47... Bc3
{[%clk 0:00:02]} 48. Nf4 {[%clk 0:01:22.3]} 48... Ba5 {[%clk 0:00:01.2]} 49.
Nxh5 {[%clk 0:01:22]} 49... Bb6 {[%clk 0:00:01.6]} 50. Bxb6+ {[%clk 0:01:21.6]}
50... Kxb6 {[%clk 0:00:02.5]} 51. Nf6 {[%clk 0:01:20.6]} 51... Kxb5 {[%clk
0:00:03.4]} 52. a7 {[%clk 0:01:20.4]} 52... Nb6 {[%clk 0:00:04.2]} 53. Nd7
{[%clk 0:01:20.3]} 1-0

[Event "*** Titled Tuesday Blitz"]
[Site "Chess.com"]
[Date "2020.10.27"]
[Round "7"]
[White "Rytenko_V"]
[Black "WildTricks"]
[Result "1-0"]
[WhiteElo "2530"]
[BlackElo "2397"]
[TimeControl "180+1"]
[EndTime "11:18:59 PDT"]
[Termination "Rytenko_V won by resignation"]

1. d4 {[%clk 0:03:00.9]} 1... Nf6 {[%clk 0:02:59.7]} 2. c4 {[%clk 0:02:59.6]}
2... e6 {[%clk 0:03:00]} 3. Nc3 {[%clk 0:02:59.1]} 3... Bb4 {[%clk 0:02:59.5]}
4. Bd2 {[%clk 0:02:59.4]} 4... b6 {[%clk 0:02:59]} 5. Nf3 {[%clk 0:02:57.8]}
5... Bb7 {[%clk 0:02:58.5]} 6. a3 {[%clk 0:02:57.7]} 6... Bxc3 {[%clk
0:02:58.2]} 7. Bxc3 {[%clk 0:02:58.6]} 7... Ne4 {[%clk 0:02:58.8]} 8. Qc2 {[%clk
0:02:57.9]} 8... O-O {[%clk 0:02:58.3]} 9. e3 {[%clk 0:02:57.3]} 9... d6 {[%clk
0:02:57.9]} 10. Bd3 {[%clk 0:02:57.1]} 10... f5 {[%clk 0:02:57.2]} 11. h3 {[%clk
0:02:42]} 11... Rf6 {[%clk 0:02:55.6]} 12. O-O-O {[%clk 0:02:39.7]} 12... Rg6
{[%clk 0:02:43.8]} 13. Rh2 {[%clk 0:02:05.4]} 13... Nxc3 {[%clk 0:02:37.4]} 14.
Qxc3 {[%clk 0:02:00.7]} 14... Rxg2 {[%clk 0:02:36.9]} 15. Rxg2 {[%clk
0:02:01.3]} 15... Bxf3 {[%clk 0:02:36.7]} 16. Rdg1 {[%clk 0:01:57.3]} 16... Bxg2
{[%clk 0:02:35]} 17. Rxg2 {[%clk 0:01:58.2]} 17... Qf6 {[%clk 0:02:30.6]} 18. d5
{[%clk 0:01:38.5]} 18... Qxc3+ {[%clk 0:02:20.7]} 19. bxc3 {[%clk 0:01:39.4]}
19... Kf7 {[%clk 0:01:37.2]} 20. dxe6+ {[%clk 0:01:37.3]} 20... Kf6 {[%clk
0:01:36.6]} 21. e4 {[%clk 0:01:08.8]} 21... f4 {[%clk 0:01:19]} 22. e5+ {[%clk
0:01:04.2]} 22... dxe5 {[%clk 0:01:08]} 23. Be4 {[%clk 0:00:53.9]} 23... c6
{[%clk 0:01:07.9]} 24. e7 {[%clk 0:00:41.9]} 24... Kxe7 {[%clk 0:00:32.9]} 25.
Rxg7+ {[%clk 0:00:41.3]} 25... Kd6 {[%clk 0:00:32]} 26. Rxh7 {[%clk 0:00:41.5]}
26... Nd7 {[%clk 0:00:19.7]} 27. Rh6+ {[%clk 0:00:39.2]} 27... Ke7 {[%clk
0:00:19.3]} 28. Bxc6 {[%clk 0:00:37.2]} 28... Rd8 {[%clk 0:00:10.7]} 29. Rh7+
{[%clk 0:00:37.4]} 29... Kd6 {[%clk 0:00:10.9]} 30. Rxd7+ {[%clk 0:00:37.6]}
30... Rxd7 {[%clk 0:00:11.8]} 31. Bxd7 {[%clk 0:00:38.3]} 31... Kxd7 {[%clk
0:00:12.7]} 32. f3 {[%clk 0:00:35.9]} 32... Ke6 {[%clk 0:00:10.8]} 33. Kd2
{[%clk 0:00:34.4]} 33... Kf6 {[%clk 0:00:06.9]} 34. Kd3 {[%clk 0:00:34.7]} 34...
Kf5 {[%clk 0:00:06.5]} 35. h4 {[%clk 0:00:34.4]} 35... a6 {[%clk 0:00:05.8]} 36.
h5 {[%clk 0:00:33.5]} 36... Kg5 {[%clk 0:00:04.6]} 37. Ke4 {[%clk 0:00:33.9]}
37... Kxh5 {[%clk 0:00:05.1]} 38. Kxe5 {[%clk 0:00:34.4]} 38... Kg5 {[%clk
0:00:05.7]} 39. a4 {[%clk 0:00:24.7]} 1-0

[Event "*** Titled Tuesday Blitz"]
[Site "Chess.com"]
[Date "2020.10.27"]
[Round "7"]
[White "TigrVShlyape"]
[Black "TimofeevAr"]
[Result "1-0"]
[WhiteElo "2896"]
[BlackElo "2777"]
[TimeControl "180+1"]
[EndTime "11:19:05 PDT"]
[Termination "TigrVShlyape won by resignation"]

1. d4 {[%clk 0:03:00.9]} 1... d5 {[%clk 0:03:00]} 2. Nf3 {[%clk 0:03:01]} 2...
Nf6 {[%clk 0:02:59.5]} 3. Bf4 {[%clk 0:03:00.4]} 3... e6 {[%clk 0:02:59.8]} 4.
e3 {[%clk 0:03:00.7]} 4... c5 {[%clk 0:03:00.1]} 5. c3 {[%clk 0:03:00.6]} 5...
Be7 {[%clk 0:02:54.9]} 6. Nbd2 {[%clk 0:02:59]} 6... O-O {[%clk 0:02:53.9]} 7.
Bd3 {[%clk 0:02:57.7]} 7... b6 {[%clk 0:02:54.2]} 8. Ne5 {[%clk 0:02:57.1]} 8...
Bb7 {[%clk 0:02:53.8]} 9. Qf3 {[%clk 0:02:55.9]} 9... Ba6 {[%clk 0:02:44.2]} 10.
Bxa6 {[%clk 0:02:53.6]} 10... Nxa6 {[%clk 0:02:44]} 11. h4 {[%clk 0:02:50.9]}
11... Nd7 {[%clk 0:02:35.7]} 12. h5 {[%clk 0:02:47.4]} 12... Nxe5 {[%clk
0:02:35.2]} 13. Bxe5 {[%clk 0:02:46.6]} 13... f6 {[%clk 0:02:33.5]} 14. Bh2
{[%clk 0:02:39]} 14... Qd7 {[%clk 0:02:33.5]} 15. O-O {[%clk 0:02:30.7]} 15...
Bd6 {[%clk 0:02:32.7]} 16. Bxd6 {[%clk 0:02:29.1]} 16... Qxd6 {[%clk 0:02:32.9]}
17. a4 {[%clk 0:02:26.5]} 17... h6 {[%clk 0:02:31.5]} 18. Rfd1 {[%clk
0:02:23.5]} 18... cxd4 {[%clk 0:02:22.5]} 19. exd4 {[%clk 0:02:22.8]} 19... Nc7
{[%clk 0:02:22.7]} 20. Nf1 {[%clk 0:02:19.9]} 20... a6 {[%clk 0:02:16.2]} 21.
Ne3 {[%clk 0:02:16.9]} 21... b5 {[%clk 0:02:16.3]} 22. g3 {[%clk 0:02:14.1]}
22... Rfb8 {[%clk 0:02:13.6]} 23. axb5 {[%clk 0:02:10.4]} 23... axb5 {[%clk
0:02:13.5]} 24. Nc2 {[%clk 0:02:09]} 24... Rxa1 {[%clk 0:02:09.1]} 25. Rxa1
{[%clk 0:02:07.8]} 25... Ra8 {[%clk 0:02:09.7]} 26. Rxa8+ {[%clk 0:02:07.5]}
26... Nxa8 {[%clk 0:02:10]} 27. Nb4 {[%clk 0:01:59.3]} 27... Nc7 {[%clk
0:02:09.7]} 28. Qg4 {[%clk 0:01:56.2]} 28... Na6 {[%clk 0:01:53.9]} 29. Nd3
{[%clk 0:01:55.4]} 29... b4 {[%clk 0:01:52.3]} 30. cxb4 {[%clk 0:01:33.2]} 30...
Nc7 {[%clk 0:01:51.6]} 31. Nc5 {[%clk 0:01:28.1]} 31... Kf7 {[%clk 0:01:42.2]}
32. Qg6+ {[%clk 0:01:27.6]} 32... Kg8 {[%clk 0:01:42.2]} 33. Kg2 {[%clk
0:01:12.7]} 33... Kf8 {[%clk 0:01:40.2]} 34. Qh7 {[%clk 0:01:11.4]} 34... Nb5
{[%clk 0:01:36.7]} 35. Qd3 {[%clk 0:01:08.9]} 35... Qc6 {[%clk 0:01:32.8]} 36.
Nxe6+ {[%clk 0:01:05.8]} 36... Qxe6 {[%clk 0:01:33]} 37. Qxb5 {[%clk 0:01:06.1]}
37... Qe4+ {[%clk 0:01:33.3]} 38. Kg1 {[%clk 0:01:06.1]} 38... Qb1+ {[%clk
0:01:26]} 39. Kh2 {[%clk 0:01:05.3]} 39... Qf5 {[%clk 0:01:25.9]} 40. Qe2 {[%clk
0:01:02.2]} 40... Kf7 {[%clk 0:01:18]} 41. b5 {[%clk 0:01:01.9]} 41... Qc8
{[%clk 0:01:18.1]} 42. Kg2 {[%clk 0:00:57.2]} 42... Qb7 {[%clk 0:01:14.1]} 43.
Qd3 {[%clk 0:00:56.4]} 43... Qb6 {[%clk 0:01:12.7]} 44. Kf3 {[%clk 0:00:51.8]}
44... Kg8 {[%clk 0:01:09.1]} 45. b4 {[%clk 0:00:50.6]} 45... Kf7 {[%clk
0:01:08.7]} 46. Ke3 {[%clk 0:00:49.8]} 46... Qe6+ {[%clk 0:01:07.6]} 47. Kd2
{[%clk 0:00:49]} 47... Qb6 {[%clk 0:01:07.8]} 48. Ke3 {[%clk 0:00:43.5]} 48...
Qe6+ {[%clk 0:01:07.7]} 49. Kf3 {[%clk 0:00:43.2]} 49... Qb6 {[%clk 0:01:08.2]}
50. Kg2 {[%clk 0:00:41]} 50... Kg8 {[%clk 0:01:05.4]} 51. Qc3 {[%clk 0:00:40.9]}
51... Qxb5 {[%clk 0:01:05.3]} 52. Qc5 {[%clk 0:00:41.4]} 52... Qd3 {[%clk
0:00:52.2]} 53. Qxd5+ {[%clk 0:00:40.6]} 53... Kh7 {[%clk 0:00:52.7]} 54. b5
{[%clk 0:00:40.6]} 54... Qb1 {[%clk 0:00:50.1]} 55. g4 {[%clk 0:00:39.3]} 55...
Kh8 {[%clk 0:00:48.1]} 56. Qc6 {[%clk 0:00:35.1]} 56... Kh7 {[%clk 0:00:44.1]}
57. b6 {[%clk 0:00:33.7]} 57... f5 {[%clk 0:00:43.9]} 58. b7 {[%clk 0:00:30.9]}
1-0